Cogmind - Beta 16.1 @@@ ROGUE MODE // 2026.04.10 @ 18:51:14 Player: Lyft Result: Destroyed by Y-45 Defender with Beam Rifle Performance ------------- Evolutions (0) 0 Regions Visited (2) 400 Robots Destroyed (45) 225 Value Destroyed (703) 703 Prototype IDs (4) 80 Alien Tech Used (0) 0 Bonus (0) 0 TOTAL SCORE: 1408 Bonus ------- None Cogmind --------- Core Integrity 0/250 Matter 296/300 Energy 250/250 System Corruption 0% Temperature Cool (27) Movement Treading (160) Location -10/Mines Parts ------- > --- POWER (1) -------- Ion Engine > --- PROPULSION (2) --- Light Treads Light Treads > --- UTILITY (2) ------ Improved Heat Sink Large Storage Unit > --- WEAPON (2) ------- Assault Rifle Light Assault Rifle > --- INVENTORY (15) --- Ion Engine Ion Engine Light Nuclear Core Compact Wheel Improved Heat Sink Structural Scanner Terrain Scanner Seismic Detector Transport Network Coupler Light Armor Plating Hacking Suite Light Assault Rifle Grenade Launcher Datajack Mining Laser Peak State ------------ > --- POWER ------------ Ion Engine > --- PROPULSION ------- Light Treads Light Treads > --- UTILITY ---------- Improved Heat Sink Large Storage Unit > --- WEAPON ----------- Assault Rifle Light Assault Rifle > --- INVENTORY -------- Ion Engine Ion Engine Light Nuclear Core Compact Wheel Improved Heat Sink Structural Scanner Terrain Scanner Seismic Detector Transport Network Coupler Hacking Suite Light Assault Rifle Grenade Launcher Datajack Mining Laser [Rating: 11] Favorites ----------- Power Ion Engine Engine Ion Engine Propulsion Light Treads Treads Light Treads Leg Aluminum Leg Wheel Compact Wheel Utility Large Storage Unit Device Heat Sink Storage Large Storage Unit Weapon Assault Rifle Ballistic Gun Assault Rifle Launcher Grenade Launcher Special Weapon Mining Laser Build | -11 -10 -10 ------- Run | Yrd Mat Min Slots Evolved . | . . . Power . | . . . Propulsion . | . . . Utility . | . . . Weapon . | . . . Parts Attached 20 | 4 14 2 Power 2 | . 2 . Engine 2 | . 2 . Core . | . . . Reactor . | . . . Propulsion 6 | 2 4 . Treads 4 | 1 3 . Leg . | . . . Wheel 2 | 1 1 . Hover . | . . . Flight . | . . . Utility 7 | 1 5 1 Device 5 | 1 3 1 Storage 2 | . 2 . Processor . | . . . Hackware . | . . . Protection . | . . . Artifact . | . . . Weapon 5 | 1 3 1 Energy Gun . | . . . Energy Cannon . | . . . Ballistic Gun 3 | 1 2 . Ballistic Cannon . | . . . Launcher 1 | . . 1 Special Weapon 1 | . 1 . Impact Weapon . | . . . Slashing Weapon . | . . . Piercing Weapon . | . . . Special Melee Weapon . | . . . Unidentified Prototypes . | . . . Parts Lost 1 | . 1 . Power . | . . . Propulsion 1 | . 1 . Utility . | . . . Weapon . | . . . Highest Loss Streak 1 | . 1 . To Critical Strikes . | . . . Average Backups 10 | 4 9 13 Power 1 | 1 1 2 Propulsion 2 | 2 2 1 Utility 3 | . 3 5 Weapon 2 | . 2 2 Tool/Special . | . . . Unused Backups 27 | 7 6 14 Power 6 | 1 2 3 Propulsion 4 | 2 1 1 Utility 9 | 1 1 7 Weapon 6 | 3 1 2 Tool/Special 2 | . 1 1 Average Slot Usage (%) 99 | . 99 100 Engine 14 | . 14 14 Treads 20 | . 17 28 Wheel 7 | . 10 . Device 13 | . 13 14 Storage 14 | . 14 14 Ballistic Gun 23 | . 22 27 Special Weapon 4 | . 5 . Peak Build Rating 11 | 7 8 11 Average Rating 8 | 6 7 10 On Entrance 7 | 6 7 8 Avg Prop Armor Cover (%) 5 | 11 5 . Naked Turns . | . . . Heaviest Build 30 | 15 30 30 Greatest Support 40 | 10 40 40 Greatest Overweight (x) 1 | 1 1 . Average Overweight (x) . | 1 . . Largest Inventory Capacity 15 | 8 15 15 Average Capacity 13 | 8 13 15 Most Carried 15 | 6 14 15 Average Carried 10 | 4 9 13 Final Capacity 15 | 8 15 15 Final Carried 15 | 5 10 15 Class Distribution -------------------- 100% | Mutant Dominant Class ---------------- Mutant | -10/Materials Mutant | -10/Mines Resources | -11 -10 -10 ----------- Run | Yrd Mat Min Matter Collected 1115 | 302 538 275 Remotely . | . . . Salvage Created 1100 | 221 655 224 Parts 87 | 19 46 22 Haulers Intercepted 2 | . 2 . Recyclers Shooed 1 | 1 . . Parts Field Recycled . | . . . Retrieved Matter . | . . . Parts Self-Destructed . | . . . Prevented . | . . . Parts Restored . | . . . Kills | -11 -10 -10 ------- Run | Yrd Mat Min Combat Hostiles Destroyed 28 | . 15 13 Guns 20 | . 15 5 AOE 8 | . . 8 Classes Destroyed 8 | 3 5 . Worker 5 | 2 3 . Tunneler 5 | 5 . . Hauler 2 | . 2 . Recycler 1 | 1 . . Operator 1 | . 1 . Watcher 3 | . 3 . Swarmer 18 | . 9 9 Grunt 10 | . 6 4 Best Kill Streak 10 | 5 10 3 Combat Bots Only 6 | . 6 3 Max Kills in Single Turn 2 | 2 2 2 Gunslinging 1 | . 1 . Exploded 2 | . . 2 Melee . | . . . Uniques/NPCs Destroyed . | . . . Combat | -11 -10 -10 -------- Run | Yrd Mat Min Hostile Shots Fired 145 | . 82 63 Missed 39 | . 15 24 Hits 106 | . 67 39 Projectile 106 | . 67 39 Critical Strikes 2 | . . 2 Damage Taken 1138 | . 734 404 Core 250 | . 108 142 Absorbed by Shields . | . . . Core Remaining (%) 100 | 100 . . Volleys Fired 118 | 13 73 32 Largest 2 | 2 2 2 Hottest 100 | 40 100 40 Shots Fired 217 | 26 134 57 Gun 198 | 26 122 50 Cannon . | . . . Launcher 7 | . . 7 Special 12 | . 12 . Kinetic 198 | 26 122 50 Thermal 12 | . 12 . Explosive 7 | . . 7 Electromagnetic . | . . . Robot Hit Streak 13 | 7 13 4 Robot Miss Streak 5 | 3 5 3 Penetration Max . | . . . Secondary Targets 4 | . 4 . Max Gunslinging Chain 1 | . 1 . Shots Hit Robots 121 | 14 77 30 Core Hits 63 | 9 33 21 Critical Kills 1 | . 1 . Critical Parts Destroyed . | . . . Critical Strikes 1 | . 1 . Destroy 1 | . 1 . Melee Attacks . | . . . Impact . | . . . Slashing . | . . . Piercing . | . . . Sneak Attacks . | . . . Combat Hostiles . | . . . Follow-up Attacks . | . . . Damage Inflicted 1925 | 182 995 748 Guns 1525 | 182 995 348 Cannons . | . . . Explosions 400 | . . 400 Melee . | . . . Ramming . | . . . Kinetic 1525 | 182 995 348 Thermal 37 | . . 37 Explosive 363 | . . 363 Electromagnetic . | . . . Impact . | . . . Slashing . | . . . Piercing . | . . . Highest Corruption . | . . . Average Corruption . | . . . Corruption Purged . | . . . Corruption Blocked . | . . . Overload Shots . | . . . Overflow Damage 22 | . . 22 Projectiles . | . . . Explosions 22 | . . 22 Melee . | . . . Knockbacks . | . . . Impact . | . . . Kinetic . | . . . Secondary . | . . . Self-Inflicted Damage . | . . . Shots . | . . . Rammed . | . . . Targets Rammed . | . . . Kicked . | . . . Crushed . | . . . Highest Temperature 20 | 6 20 1 Average Temperature 8 | 6 10 1 Received Heat Transfer 414 | . 258 156 Siege Activations . | . . . Martial Activations . | . . . Shielding Activations . | . . . Robots Disrupted . | . . . Combat Hostiles . | . . . Robots Corrupted . | . . . Combat Hostiles . | . . . Parts Fried . | . . . Impact Corruptions . | . . . Robots Melted . | . . . Combat Hostiles . | . . . Parts Melted . | . . . Heat Transferred 50 | . . 50 Parts Sabotaged . | . . . Parts Stolen . | . . . Parts Stripped . | . . . Power Chain Reactions . | . . . Alert | -11 -10 -10 ------- Run | Yrd Mat Min Maximum Alert Level 1 | . . 1 Low Security (%) 92 | 100 100 60 Level 1 7 | . . 39 Level 2 . | . . . Level 3 . | . . . Level 4 . | . . . Level 5 . | . . . High Security . | . . . Max Security . | . . . Peak Influence 252 | 15 163 252 Initial 17 | . . 17 Average 64 | 2 40 178 Influence Increases 914 | 40 489 385 Destroy 0b10 Robot/C 560 | . 300 260 Destroy 0b10 Robot/NC 85 | 40 45 . Destroy Leader 110 | . 60 50 Successful Hack 25 | . 25 . Select Force Hacks 30 | . 30 . Disable Machine 45 | . 15 30 Destroy Structure 59 | . 14 45 Influence Decreases 766 | 40 443 283 Entered New Map 29 | . . 29 Time Decay 727 | 40 433 254 Lost Part 10 | . 10 . Squads Dispatched 2 | . 2 . Investigation 1 | . 1 . Extermination . | . . . Reinforcement 1 | . 1 . Assault . | . . . Garrison . | . . . Intercept . | . . . Searches Triggered . | . . . Construction Impeded . | . . . Haulers Reinforced . | . . . Active Scanning Responses . | . . . Cargo Convoy Interrupts . | . . . Stealth | -11 -10 -10 --------- Run | Yrd Mat Min Distress Signals 2 | . 2 . Communications Jammed . | . . . Distress Signals . | . . . Times Spotted 39 | . 24 15 Peak Tracking Total 5 | . 5 3 Tactical Retreats . | . . . Traps | -11 -10 -10 ------- Run | Yrd Mat Min Traps Triggered 1 | . 1 . Indirectly . | . . . Trap Hack Attempts . | . . . Triggered . | . . . Disarmed . | . . . Reprogrammed . | . . . Reused . | . . . Traps Extracted . | . . . Installed . | . . . Triggered . | . . . Machines | -11 -10 -10 ---------- Run | Yrd Mat Min Machines Disabled 3 | . 1 2 Max in Single Turn 2 | . 1 2 Machines Repaired . | . . . Machines Dismantled . | . . . Machines Sabotaged . | . . . Overloaded Fab Kills . | . . . Hacking | -11 -10 -10 --------- Run | Yrd Mat Min Machines Accessed 9 | . 9 . Terminals 8 | . 8 . Fabricators . | . . . Repair Stations . | . . . Recycling Units 1 | . 1 . Scanalyzers . | . . . Garrison Access . | . . . Total Hacks 21 | . 21 . Successful 13 | . 13 . Failed 8 | . 8 . Catastrophic 2 | . 2 . Database Lockouts . | . . . Manual 16 | . 16 . Terminals 19 | . 19 . Fabricators . | . . . Repair Stations . | . . . Recycling Units 2 | . 2 . Scanalyzers . | . . . Garrison Access . | . . . Terminal Hacks 6 | . 6 . Robot Analysis 3 | . 3 . Prototype ID Bank 2 | . 2 . Terminal Index 1 | . 1 . Fabricator Hacks . | . . . Repair Station Hacks . | . . . Recycling Unit Hacks 1 | . 1 . Report Inventory 1 | . 1 . Scanalyzer . | . . . Garrison Access Hacks . | . . . Unauthorized Hacks 6 | . 6 . Terminals 5 | . 5 . Assimilate 2 | . 2 . Botnet 2 | . 2 . Operators 1 | . 1 . Fabricators . | . . . Repair Stations . | . . . Recycling Units 1 | . 1 . Tunnel 1 | . 1 . Scanalyzers . | . . . Garrison Access . | . . . Data Cores Recovered . | . . . Used . | . . . Hacking Detections 5 | . 5 . Full Trace Events . | . . . Feedback Events . | . . . Feedback Blocked . | . . . Robot Schematics Acquired . | . . . Robots Built . | . . . Authchips . | . . . Time . | . . . Total Robot Build Rating . | . . . Part Schematics Acquired . | . . . Parts Built . | . . . Authchips . | . . . Time . | . . . Total Part Build Rating . | . . . Part Studies Acquired . | . . . Parts Repaired . | . . . Time . | . . . Parts Recycled . | . . . Recycled Matter . | . . . Retrieved Matter . | . . . Retrieved Components . | . . . Parts Scanalyzed . | . . . Part Schematics Acquired . | . . . Parts Damaged . | . . . Bothacking | -11 -10 -10 ------------ Run | Yrd Mat Min Used RIF Installer . | . . . Robots Hacked . | . . . Non-combat . | . . . Combat . | . . . Robot Hacks Applied . | . . . Relay Couplers Released . | . . . Fabnet Peak Effective % . | . . . Robots Rewired . | . . . Allies Hacked . | . . . Hacks Repelled . | . . . Allies | -11 -10 -10 -------- Run | Yrd Mat Min Total Allies 1 | . 1 . Largest Group 1 | . 1 . Highest-Rated Group 10 | . 10 . Highest-Rated Ally 10 | . 10 . Total Orders 1 | . 1 . FOLLOW 1 | . 1 . Ally Attacks . | . . . Total Damage . | . . . Kills . | . . . Allies Corrupted . | . . . Allies Melted . | . . . Intel | -11 -10 -10 ------- Run | Yrd Mat Min Active Infowar (turns) 647 | 161 486 . Seismic 647 | 161 486 . Robot Analysis Total 3 | . 3 . Derelict Logs Recovered 1 | . . 1 Drone Launches . | . . . Drone Recoveries . | . . . Exploration | -11 -10 -10 ------------- Run | Yrd Mat Min Turns Passed 2835 | 220 2062 553 Spaces Moved 1172 | 29 860 283 Core . | . . . Treads 928 | . 645 283 Legs . | . . . Wheels 244 | 29 215 . Hover . | . . . Flight . | . . . Fastest Speed 95 | 95 95 160 Average Speed 168 | 95 173 160 Slowest Speed 240 | 95 240 160 Overloaded Moves . | . . . Propulsion Burnouts . | . . . Robots Hopped . | . . . Potential Cave-ins . | . . . Cave-ins Triggered . | . . . Exploration Rate (%) 53 | 3 91 67 Regions Visited 2 Branch Regions 1 Pre-discovered Areas 2 | . 1 1 Known Exits Taken . | . . . Unknown Exits Taken 2 | 1 1 . Scrap Searched 1 | . . 1 Spaces Dug 21 | . 11 10 Terrain Destroyed 70 | . 12 58 Melee . | . . . Projectile 12 | . 12 . AOE 58 | . . 58 Terrain Rammed . | . . . Walls Destroyed . | . . . Machines Disabled . | . . . Actions | -11 -10 -10 --------- Run | Yrd Mat Min Total 1795 | 195 1271 329 Wait 422 | 145 277 . Move 1170 | 28 859 283 Hop . | . . . Pick Up 30 | 2 22 6 Fast Attach 1 | 1 . . Attach 7 | 2 5 . Detach 1 | . 1 . Swap 23 | 1 15 7 Drop 23 | 3 19 1 Fire 118 | 13 73 32 Melee . | . . . Ram . | . . . Kick . | . . . Crush . | . . . Escape Stasis . | . . . Rewire . | . . . Trap . | . . . Miscellaneous . | . . . Route ------- -11/Scrapyard -10/Materials (discovered 5 exits: [*Mat x3] / [*Min x2]) -10/Mines (discovered 2 exits: [*Mat] / [*Sub]) History --------- Turn | Location | Event 21 | -11/Scrapyard | Discovered new exit (range 3) 221 | -11/Scrapyard | Entered Materials 303 | -10/Materials | Discovered new exit (range 13) 312 | -10/Materials | Build established: Mutant 418 | -10/Materials | Discovered new exit (range 8) 478 | -10/Materials | Discovered new exit (range 13) 786 | -10/Materials | Discovered new exit (range 5) 1521 | -10/Materials | Derelicts attacked the area 1565 | -10/Materials | Discovered new exit (range 6) 2283 | -10/Materials | Entered Mines 2378 | -10/Mines | Core integrity fell below 50% 2580 | -10/Mines | Core integrity fell below 20% 2616 | -10/Mines | Discovered new exit (range 8) 2675 | -10/Mines | Discovered new exit (range 12) 2836 | -10/Mines | Destroyed by Y-45 Defender with Beam Rifle Last Messages --------------- 02390_ The unstable cave ceiling collapses. 02473_ Searching scrap... 02473_ Found Terrain Scanner. 02473_ Found 65 Matter. 02474_ Acquired 65 matter. 02477_ Acquired Terrain Scanner. 02484_ Plasma Injector explodes. 02484_ Laser Drill disabled. 02484_ S-10 Pest destroyed. 02509_ Destroyed Flight Unit. 02517_ S-10 Pest destroyed. 02528_ Acquired 12 matter. 02571_ G-47 Trooper destroyed. 02583_ G-34 Mercenary destroyed. 02589_ Acquired 91 matter. 02616_ EXIT=FOUND 02720_ Acquired 32 matter. 02723_ Acquired Lgt. Armor Plating. 02772_ K-01 Serf collects debris. 02830_ Critical hit (Burn: +37). Map ----- +----------------------------------------------------+ | ?????????# """ """ """ #???# | | ?????????# #???# | | ?????????### #################### | | ???####????# #??????????????## | | ??## ##???# #?????????????## "" | | ??# ##??# #???????????### "" | | ??# #### ########????# "" | | ??# [[ #???# | | ??# % ###### ### ###?# ### | | ??## ##????# ### ### #??? | | ???######?????# ### ???? | | ??????????????# ### ### ??? | | ??#####???????# #?# """ ### ?? | | ??# ##??????# ### """ ?? | | ???# ##?????# ## """ #?? | | ????# ##???## ## #?? | | ????## ##??# ##?? ?? | | ?????## ##?# ## ##???? ?? | | ??????## #### #####??????## ? | | ???????# #?### #?????????????? | | ???###?## ##??# #?????????????? | | ??##" ## ##?# #?????????????? | | ??#"" Y# # ### #?????????????? | | ??#!/ / # ## #?????????????? | | ??#!! Y # #?????????????? | | ??#"" # @# ## #?????????????? | | ??##"??# ## #?????????????? | | ???????# ## #?????????????? | | ????? ### #?????????????? | | ???# ####?# #?????????????? | | ???# ##????# #?????????????? | | ???# ##?????# #?????????????? | | ???## #??????# ?????????????? | | ????# ??????# ?????????????? | | ????# ?????? ????????????? | | ????# ?????? ????????????? | | ????## ??????## ????????????? | | ?????#####???????? ???????????? | | ?????????????????? ???????????? | | ?????????????????? ###???????????? | | ?????????????????? ??????????????? | | ?????????????????? ??????????????? | | ?????????????????? ??????????????? | | ?????????????????? ??????????????? | | ?????????????????????????????????? | | ?????????????????????????????????? | | ?????????????????????????????????? | | ?????????????????????????????????? | | ?????????????????????????????????? | | ?????????????????????????????????? | +----------------------------------------------------+ Best States ------------- Heat Dissipation 39 Energy Generation 10 Energy Capacity 250 Matter Stores 300 Matter Capacity 300 Sight Range 16 Terrain Scan Density 10 Evasion (%) 41 Recoil Reduction 2 Item Schematics ----------------- None Robot Schematics ------------------ None Fabricated ------------ Nothing Repaired ---------- Nothing Studied --------- None Alien Tech Used ----------------- None Achievements -------------- None Challenges ------------ None Game ------ Seed RingDeuteriumPlatform Manual? 0 Play Time 00:24:00 Cumulative 74.7 hours Start 2026.04.10 @ 18:30:06 End 2026.04.10 @ 18:51:14 Sessions 1 Manual Loads 0 Difficulty Rogue Special Mode None Game No. 71 Rogue 61 Adventurer 9 Explorer 1 Win Type - Total 0 Types 0/0/0/0/0/0/0/0/0/0 Lore% 38 Gallery% 34 Achievement% 27 Wizard Run 0 Options --------- Layout 2 ASCII 0 Keyboard 0 Movement Mouse Keybinds 0 Fullscreen 1 Font 48/Terminus Map View 50x44 Zoom Use 0% Tactical HUD 1 Map Filters NONE Filters NONE Steam 1 RUN: b7db04f4-78b5-4034-ac55-d2d21702855c